bitfinex/quotes_BTCUSD_20240731
["timestamp","ask_amount","ask_price","bid_price","bid_amount"]
[1722468244408,0.00091301,64880.0,64879.0,1.40636675]
[1722468244608,0.00091301,64880.0,64879.0,1.71463275]
[1722468246956,0.00091301,64880.0,64879.0,1.69924872]
[1722468247180,0.00091301,64880.0,64879.0,3.19924872]
[1722468251572,0.00091301,64880.0,64879.0,3.21924872]
[1722468252892,0.00091301,64880.0,64879.0,3.31924872]
[1722468253090,0.00091301,64880.0,64879.0,3.30924872]
[1722468253659,0.00091301,64880.0,64879.0,1.79924872]
[1722468253862,0.00091301,64880.0,64879.0,1.80007872]
[1722468259143,0.00091301,64880.0,64879.0,3.30007872]
[1722468261934,0.00091301,64880.0,64879.0,3.32007872]
[1722468262514,0.00091301,64880.0,64879.0,3.31007872]
[1722468262877,0.00091301,64880.0,64879.0,3.32007872]
[1722468263293,0.00091301,64880.0,64879.0,3.40777872]
[1722468263961,0.00091301,64880.0,64879.0,3.39777872]
[1722468264518,0.00091301,64880.0,64879.0,3.40777872]
[1722468266568,0.0003905,64880.0,64879.0,3.40777872]
[1722468267665,0.0003905,64880.0,64879.0,3.53053551]
[1722468269541,0.0003905,64880.0,64879.0,3.52053551]
[1722468269741,0.0003905,64880.0,64879.0,3.52054089]
[1722468270755,0.0003905,64880.0,64879.0,3.53054089]
[1722468271923,0.01220251,64893.0,64892.0,0.77051]
[1722468272371,0.01915684,64893.0,64892.0,0.77051]
[1722468272811,0.01220251,64893.0,64892.0,0.77051]
[1722468273019,0.00220251,64893.0,64892.0,0.77051]
[1722468273213,0.00220251,64893.0,64892.0,1.09409803]
[1722468273415,0.00720251,64893.0,64892.0,1.09409803]
[1722468273564,0.01220251,64893.0,64892.0,1.09409803]
[1722468274451,0.00720251,64893.0,64892.0,1.09409803]
[1722468274856,0.00220251,64893.0,64892.0,1.09409803]
[1722468275010,0.00220251,64893.0,64892.0,1.09509803]
[1722468276752,0.01220251,64893.0,64892.0,1.09509803]
[1722468277287,0.01220251,64893.0,64892.0,1.079714]
[1722468277491,0.01220251,64893.0,64892.0,0.77151]
[1722468280987,0.01220251,64893.0,64892.0,0.001]
[1722468280988,0.32054025,64893.0,64892.0,0.001]
[1722468281304,0.41242546,64893.0,64892.0,0.001]
[1722468281523,0.36644257,64893.0,64892.0,0.001]
[1722468281724,0.4354169,64893.0,64892.0,0.001]
[1722468281944,0.1483,64890.0,64889.0,0.154107]
[1722468282100,0.012,64884.0,64883.0,0.00935906]
[1722468282310,0.01,64885.0,64884.0,0.154121]
[1722468282503,0.01,64885.0,64884.0,0.14955172]
[1722468282911,0.0874,64885.0,64884.0,0.14955172]
[1722468283973,0.01,64885.0,64884.0,0.15055172]
[1722468285104,0.01,64885.0,64884.0,0.15255172]
[1722468285686,0.05603079,64885.0,64884.0,0.15255172]
[1722468286041,0.05603079,64885.0,64884.0,0.15338172]
[1722468286493,0.05603079,64885.0,64884.0,0.25338172]
[1722468287237,0.13733079,64885.0,64884.0,0.10383]
[1722468287737,0.0893,64885.0,64884.0,0.10383]
[1722468289405,0.16045341,64885.0,64884.0,0.10383]
[1722468289805,0.16045798,64885.0,64884.0,0.10383]
[1722468290060,0.15845798,64885.0,64884.0,0.10383]
[1722468290500,0.23327598,64885.0,64884.0,0.10383]
[1722468290855,0.23527598,64885.0,64884.0,0.10383]
[1722468291061,0.23327598,64885.0,64884.0,0.10383]
[1722468291413,0.54351298,64885.0,64884.0,0.10383]
[1722468291612,0.54351907,64885.0,64884.0,0.10383]
[1722468291808,0.23528207,64885.0,64884.0,0.10383]
[1722468292420,0.474355,64885.0,64884.0,0.10383]
[1722468292561,0.782592,64885.0,64884.0,0.10383]
[1722468292786,0.58962774,64885.0,64884.0,0.10383]
[1722468293029,0.474355,64885.0,64884.0,0.10383]
[1722468293231,0.464355,64885.0,64884.0,0.10383]
[1722468293436,0.472355,64885.0,64884.0,0.10383]
[1722468293610,0.782592,64885.0,64884.0,0.10383]
[1722468293821,0.58962248,64885.0,64884.0,0.10383]
[1722468294233,0.770592,64885.0,64884.0,0.10383]
[1722468294436,0.56456772,64885.0,64884.0,0.10383]
[1722468294663,0.164118,64885.0,64884.0,0.10383]
[1722468294817,0.2793839,64885.0,64884.0,0.10383]
[1722468295017,1.232929,64885.0,64884.0,0.10383]
[1722468295306,1.58745538,64885.0,64884.0,0.10383]
[1722468295463,1.7581125,64885.0,64884.0,0.10383]
[1722468295624,2.0663495,64885.0,64884.0,0.10383]
[1722468296164,2.22590122,64885.0,64884.0,0.10183]
[1722468296369,2.32590122,64885.0,64884.0,0.10183]
[1722468296526,2.32890122,64885.0,64884.0,0.10183]
[1722468296740,2.32890122,64885.0,64879.0,0.00083]
[1722468296741,1.407174,64880.0,64879.0,0.00083]
[1722468296942,1.85588119,64880.0,64879.0,0.00083]
[1722468297147,2.31369391,64880.0,64879.0,0.00083]
[1722468297354,1.553737,64877.0,64876.0,0.00083]
[1722468297604,2.00549591,64877.0,64876.0,0.00083]
[1722468297757,2.31377091,64877.0,64876.0,0.00083]
[1722468299085,2.2455531,64877.0,64876.0,0.00083]
[1722468299288,2.44821126,64877.0,64876.0,0.00083]
[1722468299698,2.45421126,64877.0,64876.0,0.00183]
[1722468300063,2.46021126,64877.0,64876.0,0.00283]
[1722468300788,2.59789808,64877.0,64876.0,0.00283]
[1722468301367,2.59830112,64877.0,64876.0,0.00283]
[1722468301749,2.46060389,64877.0,64876.0,0.00283]
[1722468301959,2.46050561,64877.0,64876.0,0.00283]
[1722468302368,2.4698015,64877.0,64876.0,0.00283]
[1722468303515,2.2503015,64877.0,64876.0,0.00283]
[1722468303673,2.52361961,64877.0,64876.0,0.00283]
[1722468303872,2.52379807,64877.0,64876.0,0.00283]
[1722468304574,2.49969593,64877.0,64876.0,0.00283]
[1722468305387,2.61429463,64877.0,64876.0,0.00283]
[1722468306289,2.49969593,64877.0,64876.0,0.00283]
[1722468306867,2.51383142,64877.0,64876.0,0.00283]
[1722468307129,2.52383142,64877.0,64876.0,0.00283]
[1722468307541,2.63838229,64877.0,64876.0,0.00283]
[1722468307840,2.63966819,64877.0,64876.0,0.00283]
[1722468308305,2.52512218,64877.0,64876.0,0.00283]
[1722468309313,2.6167265,64877.0,64876.0,0.00283]
[1722468310351,2.52512218,64877.0,64876.0,0.00283]
[1722468310976,2.52512233,64877.0,64876.0,0.00283]
[1722468311520,2.59380819,64877.0,64876.0,0.00283]
[1722468312265,2.59379646,64877.0,64876.0,0.00283]
[1722468312444,2.30561555,64877.0,64876.0,0.00283]
[1722468312642,2.52511555,64877.0,64876.0,0.00283]
[1722468313226,2.45247767,64877.0,64876.0,0.00283]
[1722468313435,2.5251084,64877.0,64876.0,0.00283]
[1722468314298,2.45247767,64877.0,64876.0,0.00283]
[1722468314510,2.49826409,64877.0,64876.0,0.00283]
[1722468314737,2.57039967,64877.0,64876.0,0.00283]
[1722468315616,2.18220276,64877.0,64876.0,0.00283]
[1722468317325,2.11006718,64877.0,64876.0,0.00283]
[1722468317590,2.18206239,64877.0,64876.0,0.00283]
[1722468318093,2.19206239,64877.0,64876.0,0.00283]
[1722468318569,2.21619642,64877.0,64876.0,0.00283]
[1722468319213,2.07449642,64877.0,64876.0,0.00283]
[1722468319430,2.08449642,64877.0,64876.0,0.00283]
[1722468319864,2.07449642,64877.0,64876.0,0.00283]
[1722468320082,2.08449642,64877.0,64876.0,0.00283]
[1722468320702,2.08454067,64877.0,64876.0,0.00283]
[1722468321151,2.07454067,64877.0,64876.0,0.00283]
[1722468321367,2.08454067,64877.0,64876.0,0.00283]
[1722468321572,2.19064401,64877.0,64876.0,0.00283]
[1722468322257,2.18064401,64877.0,64876.0,0.00283]
[1722468324148,2.18106141,64877.0,64876.0,0.00283]
[1722468324561,2.22686738,64877.0,64876.0,0.00283]
[1722468325970,2.22687915,64877.0,64876.0,0.00283]
[1722468326486,2.18106141,64877.0,64876.0,0.00283]
[1722468326944,2.24977036,64877.0,64876.0,0.00283]
[1722468328017,2.25977036,64877.0,64876.0,0.00283]
[1722468328458,2.19106141,64877.0,64876.0,0.00283]
[1722468328679,2.28267335,64877.0,64876.0,0.00283]
[1722468329633,2.19106141,64877.0,64876.0,0.00283]
[1722468330467,2.63385133,64877.0,64876.0,0.00283]
[1722468330683,2.36377621,64877.0,64876.0,0.00283]
[1722468330887,2.54205752,64877.0,64876.0,0.00283]
[1722468331095,2.65665613,64877.0,64876.0,0.00283]
[1722468331290,2.63679457,64877.0,64876.0,0.00283]
[1722468331490,2.54219616,64877.0,64876.0,0.00283]
[1722468332925,2.45439616,64877.0,64876.0,0.00283]
[1722468333133,2.54219616,64877.0,64876.0,0.00283]
[1722468333540,2.09312116,64877.0,64876.0,0.00283]
[1722468333764,2.02752116,64877.0,64876.0,0.00283]
[1722468333965,2.11532116,64877.0,64876.0,0.00283]
[1722468334302,2.03642116,64877.0,64876.0,0.00283]
[1722468335114,1.94862116,64877.0,64876.0,0.00283]
[1722468335323,2.03642116,64877.0,64876.0,0.00283]
[1722468336499,2.17406488,64877.0,64876.0,0.00283]
[1722468336915,1.995821,64877.0,64876.0,0.00283]
[1722468337116,2.17692538,64877.0,64876.0,0.00283]
[1722468337317,2.03910559,64877.0,64876.0,0.00283]
[1722468338929,2.18660559,64877.0,64876.0,0.00283]
[1722468339122,2.34165285,64877.0,64876.0,0.00283]
[1722468339370,2.18660559,64877.0,64876.0,0.00283]
[1722468339539,2.19660559,64877.0,64876.0,0.00283]
[1722468340149,2.01550121,64877.0,64876.0,0.00283]
[1722468340332,2.1955154,64877.0,64876.0,0.00283]
[1722468340540,2.01550121,64877.0,64876.0,0.00283]
[1722468340862,2.19483158,64877.0,64876.0,0.00283]
[1722468341898,2.52310658,64877.0,64876.0,0.00283]
[1722468342101,2.54610658,64877.0,64876.0,0.00283]
[1722468342464,2.54629627,64877.0,64876.0,0.00283]
[1722468343255,2.4395361,64877.0,64876.0,0.00283]
[1722468343638,2.54638109,64877.0,64876.0,0.00283]
[1722468346687,2.54650886,64877.0,64876.0,0.00283]
[1722468346905,2.23823386,64877.0,64876.0,0.00283]
[1722468347087,2.03773386,64877.0,64876.0,0.00283]
[1722468347305,2.02773386,64877.0,64876.0,0.06683]
[1722468347540,1.94993386,64877.0,64876.0,0.06683]
[1722468347734,2.03773386,64877.0,64876.0,0.06683]
[1722468349550,1.71945886,64877.0,64876.0,0.06683]
[1722468349920,1.72981425,64877.0,64876.0,0.06683]
[1722468350539,1.72963471,64877.0,64876.0,0.06683]
[1722468352234,1.72966841,64877.0,64876.0,0.06683]
[1722468352642,1.80636841,64877.0,64876.0,0.00283]
[1722468353018,1.62642621,64877.0,64876.0,0.00283]
[1722468353222,1.80636837,64877.0,64876.0,0.00283]
[1722468354262,1.72966837,64877.0,64876.0,0.00283]
[1722468354532,1.72966837,64877.0,64876.0,0.06533]
[1722468354675,1.72966837,64877.0,64876.0,0.00283]
[1722468356323,1.62273405,64877.0,64876.0,0.00283]
[1722468356530,1.73002025,64877.0,64876.0,0.00283]
[1722468357545,1.72002025,64877.0,64876.0,0.00283]
[1722468358070,1.73002025,64877.0,64876.0,0.00283]
[1722468358478,1.64222025,64877.0,64876.0,0.14373]
[1722468358701,1.57117264,64877.0,64876.0,0.14373]
[1722468359422,1.3908786,64877.0,64876.0,0.14373]
[1722468359662,1.57231162,64877.0,64876.0,0.14373]
[1722468360066,1.57231621,64877.0,64876.0,0.14373]
[1722468361748,1.57231278,64877.0,64876.0,0.14373]
[1722468361906,1.49857372,64877.0,64876.0,0.14373]
[1722468362145,1.57231278,64877.0,64876.0,0.14373]
[1722468362355,1.57231278,64877.0,64876.0,0.00283]
[1722468362667,1.7218645,64877.0,64876.0,0.00283]
[1722468363467,0.19585566,64877.0,64876.0,0.14773]
[1722468363644,0.33412228,64877.0,64876.0,0.14773]
[1722468363847,0.19585566,64877.0,64876.0,0.14773]
[1722468364056,0.34999266,64877.0,64876.0,0.14773]
[1722468364216,0.65226766,64877.0,64876.0,0.14673]
[1722468364415,0.32212228,64877.0,64876.0,0.14573]
[1722468364632,0.19185566,64877.0,64876.0,0.14673]
[1722468364833,0.19302678,64877.0,64876.0,0.14673]
[1722468365060,0.1061166,64877.0,64876.0,0.45501]
[1722468365289,0.006,64877.0,64876.0,0.91743]
[1722468365584,0.006,64877.0,64876.0,1.22571]
[1722468366543,0.005,64877.0,64876.0,1.22571]
[1722468366748,0.00091301,64879.0,64876.0,1.22571]
[1722468366749,0.00091301,64879.0,64878.0,0.770675]
[1722468366955,0.00091301,64879.0,64878.0,1.01445903]
[1722468367275,0.00091301,64879.0,64878.0,0.92165903]
[1722468368049,0.00091301,64879.0,64878.0,1.22992903]
[1722468368464,0.00091301,64879.0,64878.0,1.23492903]
[1722468368669,0.00091301,64879.0,64878.0,1.23992903]
[1722468369092,0.00909831,64882.0,64881.0,0.602984]
[1722468370459,0.00909831,64882.0,64881.0,0.604984]
[1722468370667,0.00909831,64882.0,64881.0,0.605984]
[1722468372350,0.05506955,64890.0,64889.0,0.217109]
[1722468372550,0.00909831,64890.0,64889.0,0.300209]
[1722468373285,0.00909831,64890.0,64889.0,0.608427]
[1722468373893,0.01409831,64890.0,64889.0,0.609427]
[1722468374874,0.01409831,64890.0,64889.0,0.301209]
[1722468375080,0.01909831,64890.0,64889.0,0.610427]
[1722468375240,0.01,64890.0,64889.0,0.918645]
[1722468375440,0.01,64890.0,64889.0,0.93402903]
[1722468376419,0.01909831,64890.0,64889.0,0.62581103]
[1722468376555,0.01909831,64890.0,64889.0,0.62381103]
[1722468376556,0.01409831,64890.0,64889.0,0.62381103]
[1722468376752,0.01009831,64890.0,64889.0,0.62381103]
[1722468377079,0.01109831,64890.0,64889.0,0.62381103]
[1722468377688,0.002,64890.0,64889.0,0.916645]
[1722468378267,0.01109831,64890.0,64889.0,0.916645]
[1722468378469,0.002,64890.0,64889.0,1.37441472]
[1722468379533,0.002,64890.0,64889.0,1.68263272]
[1722468379739,0.002,64890.0,64889.0,1.68353441]
[1722468380655,0.001,64890.0,64889.0,1.68353441]
[1722468380899,0.00220251,64893.0,64892.0,1.22341569]
[1722468381106,0.00220251,64893.0,64892.0,1.38744975]
[1722468382447,0.00220251,64893.0,64892.0,1.40144975]
[1722468383731,0.00220251,64893.0,64892.0,1.38744975]
[1722468384130,0.00220251,64893.0,64892.0,1.41444975]
[1722468384353,0.00220251,64893.0,64892.0,1.40044975]
[1722468384559,0.00220251,64893.0,64892.0,1.09224575]
[1722468384823,0.00220251,64893.0,64892.0,1.07924575]
[1722468385342,0.00220251,64893.0,64892.0,1.09324575]
[1722468385634,0.00220251,64893.0,64892.0,1.07924575]
[1722468386251,0.00220251,64893.0,64892.0,1.07786172]
[1722468386788,0.00220251,64893.0,64892.0,1.06386172]
[1722468386992,0.00220251,64893.0,64892.0,1.07286172]
[1722468387279,0.00220251,64893.0,64892.0,1.08186172]
[1722468388459,0.00220251,64893.0,64892.0,1.39006572]
[1722468390991,0.00220251,64893.0,64892.0,1.39909372]
[1722468397186,0.00220251,64893.0,64892.0,1.48679372]
[1722468397400,0.00220251,64893.0,64892.0,1.17858972]
[1722468397840,0.00220251,64893.0,64892.0,1.16956172]
[1722468398012,0.00220251,64893.0,64892.0,1.08186172]
[1722468398013,0.01130082,64893.0,64892.0,1.08186172]
[1722468399193,0.00220251,64893.0,64892.0,1.08186172]
[1722468400113,0.01130082,64893.0,64892.0,1.08186172]
[1722468401903,0.01330082,64893.0,64892.0,0.018]
[1722468402105,1.00395434,64893.0,64892.0,0.018]
[1722468402316,1.48691666,64893.0,64892.0,0.018]
[1722468402522,2.00428345,64893.0,64892.0,0.018]
[1722468402724,2.10428345,64893.0,64892.0,0.018]
[1722468402935,2.15017519,64893.0,64892.0,0.018]
[1722468403148,2.10428345,64893.0,64892.0,0.009]
[1722468403352,0.92351531,64883.0,64882.0,0.00083]
[1722468403556,1.40808624,64883.0,64882.0,0.00083]
[1722468403760,1.49578624,64883.0,64882.0,0.00083]
[1722468404224,1.52022919,64883.0,64882.0,0.00083]
[1722468404429,1.49610133,64883.0,64882.0,0.00083]
[1722468404646,1.52022926,64883.0,64882.0,0.00083]
[1722468405020,1.45035836,64883.0,64882.0,0.00183]
[1722468405221,1.45035836,64883.0,64882.0,0.00083]
[1722468405222,1.40826241,64883.0,64882.0,0.00083]
[1722468406080,1.41526241,64883.0,64882.0,0.00183]
[1722468406834,1.42126241,64883.0,64882.0,0.00283]
[1722468408348,1.42109842,64883.0,64882.0,0.00283]
[1722468409389,0.89548343,64883.0,64882.0,0.00283]
[1722468409613,0.79471531,64883.0,64882.0,0.00283]
[1722468419212,0.48646831,64883.0,64882.0,0.00283]
[1722468419383,0.02409831,64883.0,64882.0,0.08113]
[1722468419587,0.02409831,64883.0,64882.0,0.14673]
[1722468419588,0.17822131,64883.0,64882.0,0.14673]
[1722468420214,0.48646831,64883.0,64882.0,0.06843]
[1722468420413,0.47946831,64883.0,64882.0,0.06743]
[1722468420647,0.48446831,64883.0,64882.0,0.06743]
[1722468421219,0.47846831,64883.0,64882.0,0.06643]
[1722468421429,0.17022131,64883.0,64882.0,0.06643]
[1722468421629,0.02109831,64883.0,64882.0,0.06643]
[1722468421969,0.48346831,64883.0,64882.0,0.06643]
[1722468422445,0.48346831,64883.0,64882.0,0.00083]
[1722468423075,0.780617,64883.0,64882.0,0.00083]
[1722468423324,0.79171531,64883.0,64882.0,0.00083]
[1722468425325,0.89098615,64883.0,64882.0,0.00083]
[1722468426195,0.96769635,64883.0,64882.0,0.00083]
[1722468426586,0.89098615,64883.0,64882.0,0.00083]
[1722468426830,0.96769341,64883.0,64882.0,0.00083]
[1722468429206,1.27594041,64883.0,64882.0,0.00083]
[1722468429409,1.40588811,64883.0,64882.0,0.00083]
[1722468429556,2.01207852,64883.0,64882.0,0.00083]
[1722468429762,2.42032552,64883.0,64882.0,0.00083]
[1722468429971,2.43020803,64883.0,64882.0,0.00083]
[1722468430232,2.42520803,64883.0,64882.0,0.00083]
[1722468430370,2.42020803,64883.0,64882.0,0.00083]
[1722468430579,2.42020803,64883.0,64882.0,0.00283]
[1722468430779,2.11196103,64883.0,64882.0,0.00283]
[1722468430979,2.19966103,64883.0,64882.0,0.00283]
[1722468431239,2.33136103,64883.0,64882.0,0.00283]
[1722468433123,2.33114457,64883.0,64882.0,0.00283]
[1722468433504,2.33114757,64883.0,64882.0,0.00283]
[1722468433714,2.14436099,64883.0,64882.0,0.00283]
[1722468433909,2.33114157,64883.0,64882.0,0.00283]
[1722468435574,2.33149752,64883.0,64882.0,0.00283]
[1722468436410,2.33282232,64883.0,64882.0,0.00283]
[1722468439052,2.34282232,64883.0,64882.0,0.00283]
[1722468439227,2.65106932,64883.0,64882.0,0.00283]
[1722468439614,2.65048754,64883.0,64882.0,0.00283]
[1722468441338,2.73438704,64883.0,64882.0,0.00283]
[1722468441581,2.88992534,64883.0,64882.0,0.00283]
[1722468441879,2.73475836,64883.0,64882.0,0.00283]
[1722468442111,2.72975836,64883.0,64882.0,0.00183]
[1722468442524,2.72975836,64883.0,64882.0,0.00283]
[1722468442525,2.73875836,64883.0,64882.0,0.00283]
[1722468442651,2.89402304,64883.0,64882.0,0.00283]
[1722468442852,2.55050749,64883.0,64882.0,0.00283]
[1722468443054,2.73384019,64883.0,64882.0,0.00183]
[1722468443260,2.74784019,64883.0,64882.0,0.00183]
[1722468443582,2.57080588,64883.0,64882.0,0.00183]
[1722468443784,2.57080588,64883.0,64882.0,0.06393]
[1722468443785,2.27166757,64883.0,64882.0,0.06393]
[1722468443958,2.28566757,64883.0,64882.0,0.00183]
[1722468445190,2.44100588,64883.0,64882.0,0.00183]
[1722468445758,1.22626189,64883.0,64882.0,0.00183]
[1722468445979,1.09005571,64883.0,64882.0,0.00183]
[1722468446129,1.09005542,64883.0,64882.0,0.00183]
[1722468446330,1.39921543,64883.0,64882.0,0.00183]
[1722468446532,1.38521543,64883.0,64882.0,0.00183]
[1722468446736,1.37621543,64883.0,64882.0,0.00083]
[1722468446940,1.40421543,64883.0,64882.0,0.00083]
[1722468447336,1.39021543,64883.0,64882.0,0.00083]
[1722468447606,1.40421543,64883.0,64882.0,0.00083]
[1722468447931,1.09596843,64883.0,64882.0,0.00083]
[1722468448138,1.07287012,64883.0,64882.0,0.00083]
[1722468448341,1.39021543,64883.0,64882.0,0.00083]
[1722468448543,1.40421543,64883.0,64882.0,0.00183]
[1722468449240,1.09596843,64883.0,64882.0,0.00183]
[1722468449389,1.09576009,64883.0,64882.0,0.00183]
[1722468449589,1.40400709,64883.0,64882.0,0.00183]
[1722468449806,1.09576009,64883.0,64882.0,0.00183]
[1722468451183,1.18346009,64883.0,64882.0,0.00183]
[1722468451584,1.18346009,64883.0,64882.0,0.14013]
[1722468452678,1.18352007,64883.0,64882.0,0.14013]
[1722468453301,1.10562778,64883.0,64882.0,0.14013]
[1722468453462,1.18352009,64883.0,64882.0,0.14013]
[1722468454394,1.34842183,64883.0,64882.0,0.14013]
[1722468455038,1.34864543,64883.0,64882.0,0.14013]
[1722468455426,0.49032843,64883.0,64882.0,0.14013]
[1722468455634,0.46619931,64883.0,64882.0,0.14013]
[1722468455861,0.5814328,64883.0,64882.0,0.294255]
[1722468456014,0.3880834,64883.0,64882.0,0.14013]
[1722468456410,0.3600834,64883.0,64882.0,0.13913]
[1722468456621,0.47538327,64883.0,64882.0,0.294255]
[1722468456836,0.50138327,64883.0,64882.0,0.295255]
[1722468457227,0.47538327,64883.0,64882.0,0.293255]
[1722468457423,0.48338327,64883.0,64882.0,0.294255]
[1722468457884,0.47538327,64883.0,64882.0,0.293255]
[1722468458284,0.3600834,64883.0,64882.0,0.293255]
[1722468458487,0.47532211,64883.0,64882.0,0.293255]
[1722468458705,0.3670834,64883.0,64882.0,0.14013]
[1722468459201,0.36737714,64883.0,64882.0,0.14013]
[1722468459582,0.37337714,64883.0,64882.0,0.14113]
[1722468459979,0.52750014,64883.0,64882.0,0.14113]
[1722468460551,0.45104659,64883.0,64882.0,0.14113]
[1722468460950,0.37337714,64883.0,64882.0,0.295255]
[1722468461157,0.48860037,64883.0,64882.0,0.295255]
[1722468461315,0.28921557,64883.0,64882.0,0.603506]
[1722468461516,0.17399234,64883.0,64882.0,0.911757]
[1722468461715,0.27526143,64883.0,64882.0,0.911757]
[1722468462141,0.17399234,64883.0,64882.0,0.911757]
[1722468462355,0.2752626,64883.0,64882.0,0.603506]
[1722468462525,0.18309065,64883.0,64882.0,0.603506]
[1722468462747,0.3392107,64883.0,64882.0,0.14113]
[1722468462964,0.83747205,64883.0,64882.0,0.14113]
[1722468463140,0.45329132,64883.0,64882.0,0.14113]
[1722468463339,0.48929687,64883.0,64882.0,0.14113]
[1722468463803,0.60449977,64883.0,64882.0,0.14113]
[1722468464103,0.75862277,64883.0,64882.0,0.14113]
[1722468464244,0.95166687,64883.0,64882.0,0.14113]
[1722468464683,0.83747205,64883.0,64882.0,0.14113]
[1722468464884,0.95161856,64883.0,64882.0,0.14113]
[1722468465343,1.33462968,64883.0,64882.0,0.00283]
[1722468465488,2.34456204,64883.0,64882.0,0.00283]
[1722468465714,2.41553638,64883.0,64882.0,0.00283]
[1722468465913,2.51553638,64883.0,64882.0,0.00283]
[1722468466435,2.83378338,64883.0,64882.0,0.00283]
[1722468466612,2.82778338,64883.0,64882.0,0.00183]
[1722468467018,2.83478338,64883.0,64882.0,0.00183]
[1722468467194,2.85778338,64883.0,64882.0,0.00183]
[1722468467916,2.87178338,64883.0,64882.0,0.00283]
[1722468468551,2.87178338,64883.0,64882.0,0.10283]
[1722468469384,3.09128338,64883.0,64882.0,0.10283]
[1722468469572,3.11128338,64883.0,64882.0,0.10283]
[1722468469777,3.41953038,64883.0,64882.0,0.10283]
[1722468470115,3.41953038,64883.0,64882.0,0.04831609]
[1722468470654,3.40553038,64883.0,64882.0,0.04831609]
[1722468470848,1.71661031,64877.0,64876.0,0.00083]
[1722468471052,3.00116025,64877.0,64876.0,0.00083]
[1722468471502,3.30943525,64877.0,64876.0,0.00083]
[1722468471715,1.39870031,64860.0,64859.0,0.0015542]
[1722468471867,1.86466708,64860.0,64859.0,0.0015542]
[1722468472067,1.09041031,64856.0,64855.0,0.0654]
[1722468472276,1.86473722,64856.0,64855.0,0.0654]
[1722468472675,1.09047731,64852.0,64851.0,0.0793]
[1722468472900,1.48145423,64852.0,64851.0,0.0793]
[1722468473330,1.36641487,64852.0,64851.0,0.1441]
[1722468473484,1.67480887,64852.0,64851.0,0.1441]
[1722468473691,1.84971802,64852.0,64851.0,0.1441]
[1722468473889,1.86071802,64852.0,64851.0,0.0648]
[1722468474075,1.39891631,64850.0,64849.0,0.01538403]
[1722468474274,1.85014336,64850.0,64849.0,0.01538403]
[1722468474481,1.96508401,64850.0,64849.0,0.01538403]
[1722468474684,1.73390184,64850.0,64849.0,0.01538403]
[1722468474893,1.8502237,64850.0,64849.0,0.01538403]
[1722468475310,1.96511538,64850.0,64849.0,0.01538403]
[1722468475992,2.31617942,64850.0,64849.0,0.01538403]
[1722468476250,2.31617942,64850.0,64847.0,0.00083]
[1722468476251,1.09054331,64848.0,64847.0,0.00083]
[1722468476377,2.18771542,64848.0,64847.0,0.00083]
[1722468476570,2.49612842,64848.0,64847.0,0.00083]
[1722468476794,2.20186038,64848.0,64847.0,0.00083]
[1722468476973,2.17771542,64848.0,64847.0,0.00083]
[1722468477383,2.10581542,64848.0,64847.0,0.00083]
[1722468477582,2.11281542,64848.0,64847.0,0.00083]
[1722468478075,2.11243045,64848.0,64847.0,0.00083]
[1722468478863,1.9375213,64848.0,64847.0,0.00083]
[1722468479067,2.10865732,64848.0,64847.0,0.00083]
[1722468479294,2.02925108,64848.0,64847.0,0.00083]
[1722468479495,2.10833186,64848.0,64847.0,0.00083]
[1722468480124,2.22303387,64848.0,64847.0,0.00083]
[1722468480330,2.23303387,64848.0,64847.0,0.00083]
[1722468480441,2.22303387,64848.0,64847.0,0.00083]
[1722468480647,2.20003694,64848.0,64847.0,0.00083]
[1722468480856,2.10805472,64848.0,64847.0,0.00083]
[1722468481070,2.1080529,64848.0,64847.0,0.00083]
[1722468481278,2.31530787,64848.0,64847.0,0.00083]
[1722468481487,2.22361259,64848.0,64847.0,0.00083]
[1722468481687,2.31530622,64848.0,64847.0,0.00083]
[1722468481890,2.29238508,64848.0,64847.0,0.00083]
[1722468482104,2.08944532,64848.0,64847.0,0.00083]
[1722468482305,2.27075496,64848.0,64847.0,0.00083]
[1722468482765,2.27075082,64848.0,64847.0,0.00083]
[1722468482993,2.27075065,64848.0,64847.0,0.00083]
[1722468483115,2.29368879,64848.0,64847.0,0.00083]
[1722468483310,2.27073604,64848.0,64847.0,0.00083]
[1722468483507,2.27097424,64848.0,64847.0,0.00083]
[1722468483796,2.07560244,64848.0,64847.0,0.00083]
[1722468483996,2.12142252,64848.0,64847.0,0.00083]
[1722468484398,1.96004203,64848.0,64847.0,0.00083]
[1722468485590,1.7878307,64848.0,64847.0,0.00083]
[1722468486133,1.93738242,64848.0,64847.0,0.00083]
[1722468486325,2.11012017,64848.0,64847.0,0.00083]
[1722468486549,1.99432216,64848.0,64847.0,0.00083]
[1722468486766,2.11061936,64848.0,64847.0,0.00083]
[1722468488187,2.11168106,64848.0,64847.0,0.00083]
[1722468488479,2.11176074,64848.0,64847.0,0.00083]
[1722468488863,2.25756074,64848.0,64847.0,0.00083]
[1722468489274,2.11176074,64848.0,64847.0,0.00083]
[1722468489613,2.10066243,64848.0,64847.0,0.00083]
[1722468489814,1.98636523,64848.0,64847.0,0.00083]
[1722468490046,1.9381181,64848.0,64847.0,0.00083]
[1722468490254,2.11260727,64848.0,64847.0,0.00083]
[1722468491263,2.20050727,64848.0,64847.0,0.00083]
[1722468492415,2.28280727,64848.0,64847.0,0.00083]
[1722468492589,2.51847663,64848.0,64847.0,0.00083]
[1722468492993,2.88148794,64848.0,64847.0,0.00083]
[1722468493192,2.8357638,64848.0,64847.0,0.00083]
[1722468493419,2.8287638,64848.0,64847.0,0.00083]
[1722468493621,2.7268495,64848.0,64847.0,0.00083]
[1722468493776,2.84275606,64848.0,64847.0,0.00083]
[1722468493973,2.83675606,64848.0,64847.0,0.00083]
[1722468494300,2.84975606,64848.0,64847.0,0.00083]
[1722468495282,2.98155606,64848.0,64847.0,0.00083]
[1722468495482,2.98139129,64848.0,64847.0,0.00083]
[1722468496130,2.98154913,64848.0,64847.0,0.00083]
[1722468496540,3.00569527,64848.0,64847.0,0.00083]
[1722468497328,2.98154913,64848.0,64847.0,0.00083]
[1722468497685,3.03900496,64848.0,64847.0,0.00083]
[1722468499567,3.0388372,64848.0,64847.0,0.00083]
[1722468501553,3.0288372,64848.0,64847.0,0.00083]
[1722468501774,3.0286962,64848.0,64847.0,0.00083]
[1722468501948,2.5501832,64848.0,64847.0,0.00083]
[1722468502792,2.5506726,64848.0,64847.0,0.00083]